fUST/lending_fUST_20250819
["ID","MTS","AMOUNT","RATE_DAILY","PERIOD"]
[380187883,1755599465414,-248.108334,0.00020547,2]
[380187884,1755599465423,-480.0,0.00020547,2]
[380187885,1755599465433,-792.02,0.00020547,2]
[380187886,1755599465442,-151.0,0.00020547,2]
[380187887,1755599465451,-480.0,0.00020547,2]
[380187888,1755599465461,-480.0,0.00020547,2]
[380187889,1755599465470,-480.0,0.00020547,2]
[380187890,1755599465479,-451.41325839,0.00020547,2]
[380187891,1755599465488,-480.0,0.00020547,2]
[380187892,1755599465498,-480.0,0.00020547,2]
[380187893,1755599465507,-480.0,0.00020547,2]
[380187894,1755599465516,-151.0,0.00020547,2]
[380187895,1755599465525,-199.455088,0.00020547,2]
[380187896,1755599465534,-489.16,0.00020547,2]
[380187897,1755599465543,-199.455088,0.00020547,2]
[380187898,1755599465553,-480.0,0.00020547,2]
[380187899,1755599465562,-795.9,0.00020547,2]
[380187900,1755599465572,-480.0,0.00020547,2]
[380187901,1755599465583,-182.075042,0.00020547,2]
[380187902,1755599465594,-182.075042,0.00020547,2]
[380187903,1755599465604,-480.0,0.00020547,2]
[380187904,1755599465613,-480.0,0.00020547,2]
[380187905,1755599465623,-480.0,0.00020547,2]
[380187906,1755599465632,-480.0,0.00020547,2]
[380187907,1755599465642,-151.0,0.00020547,2]
[380187908,1755599465652,-480.0,0.00020547,2]
[380187909,1755599465663,-480.0,0.00020547,2]
[380187910,1755599465674,-480.0,0.00020547,2]
[380187911,1755599465683,-480.0,0.00020547,2]
[380187912,1755599465693,-480.0,0.00020547,2]
[380187913,1755599465703,-480.0,0.00020547,2]
[380187914,1755599465712,-480.0,0.00020547,2]
[380187915,1755599465722,-480.0,0.00020547,2]
[380187916,1755599465732,-777.32,0.00020547,2]
[380187917,1755599465741,-589.87,0.00020547,2]
[380187918,1755599465751,-480.0,0.00020547,2]
[380187919,1755599465761,-865.92,0.00020547,2]
[380187920,1755599465770,-1593.85,0.00020547,2]
[380187921,1755599465780,-565.05,0.00020547,2]
[380187922,1755599465789,-480.0,0.00020547,2]
[380187923,1755599465798,-480.0,0.00020547,2]
[380187924,1755599465807,-480.0,0.00020547,2]
[380187925,1755599465816,-629.24726506,0.00020547,2]
[380187926,1755599465826,-480.0,0.00020547,2]
[380187927,1755599465836,-460.0,0.00020547,2]
[380187928,1755599465845,-480.0,0.00020547,2]
[380187929,1755599465855,-480.0,0.00020547,2]
[380187930,1755599465864,-900.2,0.00020547,2]
[380187931,1755599465873,-718.91,0.00020547,2]
[380187932,1755599465883,-599.35,0.00020547,2]
[380187933,1755599465892,-480.0,0.00020547,2]
[380187934,1755599465901,-2530.76,0.00020547,2]
[380187935,1755599465911,-480.0,0.00020547,2]
[380187936,1755599465920,-604.56240627,0.00020547,2]
[380187937,1755599465930,-505.96,0.00020547,2]
[380187938,1755599465939,-1065.73,0.00020547,2]
[380187939,1755599465948,-517.28084671,0.00020547,2]
[380187940,1755599465957,-480.0,0.00020547,2]
[380187941,1755599465967,-566.63,0.00020547,2]
[380187942,1755599465976,-480.0,0.00020547,2]
[380187943,1755599465986,-679.49,0.00020547,2]
[380187944,1755599465995,-663.9,0.00020547,2]
[380187945,1755599466004,-480.0,0.00020547,2]
[380187946,1755599466013,-480.0,0.00020547,2]
[380187947,1755599466022,-534.14,0.00020547,2]
[380187948,1755599466031,-480.0,0.00020547,2]
[380187949,1755599466040,-1373.91,0.00020547,2]
[380187950,1755599466049,-480.0,0.00020547,2]
[380187951,1755599466059,-1581.88,0.00020547,2]
[380187952,1755599466068,-340.0,0.00020547,2]
[380187953,1755599466077,-480.0,0.00020547,2]
[380187954,1755599466086,-483.39259573,0.00020547,2]
[380187955,1755599466095,-480.0,0.00020547,2]
[380187956,1755599466104,-480.0,0.00020547,2]
[380187957,1755599466113,-1611.44,0.00020547,2]
[380187958,1755599466124,-904.4,0.00020547,2]
[380187959,1755599466134,-599.96256429,0.00020547,2]
[380187960,1755599466143,-1514.26,0.00020547,2]
[380187961,1755599466153,-1044.84,0.00020547,2]
[380187962,1755599466162,-480.0,0.00020547,2]
[380187963,1755599466172,-783.38,0.00020547,2]
[380187964,1755599466181,-876.6,0.00020547,2]
[380187965,1755599466190,-480.0,0.00020547,2]
[380187966,1755599466199,-1209.1,0.00020547,2]
[380187967,1755599466209,-203.00484427,0.00020547,2]
[380187968,1755599466218,-611.3,0.00020547,2]
[380187969,1755599466227,-623.99,0.00020547,2]
[380187970,1755599466236,-480.0,0.00020547,2]
[380187971,1755599466245,-826.52,0.00020547,2]
[380187972,1755599466254,-897.57,0.00020547,2]
[380187973,1755599466263,-480.0,0.00020547,2]
[380187974,1755599466273,-480.0,0.00020547,2]
[380187975,1755599466283,-480.0,0.00020547,2]
[380187976,1755599466292,-480.0,0.00020547,2]
[380187977,1755599466384,-480.0,0.00020547,2]
[380187978,1755599466393,-480.0,0.00020547,2]
[380187979,1755599466403,-480.0,0.00020547,2]
[380187980,1755599466413,-480.0,0.00020547,2]
[380187981,1755599466423,-480.0,0.00020547,2]
[380187982,1755599466434,-480.0,0.00020547,2]
[380187983,1755599466445,-480.0,0.00020547,2]
[380187984,1755599466455,-480.0,0.00020547,2]
[380187985,1755599466465,-480.0,0.00020547,2]
[380187986,1755599466474,-2157.32,0.00020547,2]
[380187987,1755599466483,-420.0,0.00020547,2]
[380187988,1755599466493,-4013.61,0.00020547,2]
[380187989,1755599466502,-803.59,0.00020547,2]
[380187990,1755599466511,-480.0,0.00020547,2]
[380187991,1755599466521,-480.0,0.00020547,2]
[380187992,1755599466530,-480.0,0.00020547,2]
[380187993,1755599466539,-480.0,0.00020547,2]
[380187994,1755599466549,-380.0,0.00020547,2]
[380187995,1755599466560,-2409.49,0.00020547,2]
[380187996,1755599466570,-390.94230838,0.00020547,2]
[380187997,1755599466579,-480.0,0.00020547,2]
[380187998,1755599466593,-8486.46,0.00020547,2]
[380187999,1755599466602,-480.0,0.00020547,2]
[380188000,1755599466611,-1614.69,0.00020547,2]
[380188001,1755599466621,-581.68,0.00020547,2]
[380188002,1755599466630,-2954.3,0.00020547,2]
[380188003,1755599466639,-480.0,0.00020547,2]
[380188004,1755599466648,-480.0,0.00020547,2]
[380188005,1755599466658,-480.0,0.00020547,2]
[380188006,1755599466668,-480.0,0.00020547,2]
[380188007,1755599466678,-303.968295,0.00020547,2]
[380188008,1755599466687,-971.83,0.00020547,2]
[380188009,1755599466697,-480.0,0.00020547,2]
[380188010,1755599466706,-303.968295,0.00020547,2]
[380188011,1755599466715,-151.0,0.00020547,2]
[380188012,1755599466725,-480.0,0.00020547,2]
[380188013,1755599466734,-480.0,0.00020547,2]
[380188014,1755599466744,-811.56,0.00020547,2]
[380188015,1755599466753,-647.39,0.00020547,2]
[380188016,1755599466763,-536.54,0.00020547,2]
[380188017,1755599466773,-480.0,0.00020547,2]
[380188018,1755599466782,-480.0,0.00020547,2]
[380188019,1755599466791,-480.0,0.00020547,2]
[380188020,1755599466800,-491.18,0.00020547,2]
[380188021,1755599466810,-998.9,0.00020547,2]
[380188022,1755599466819,-480.0,0.00020547,2]
[380188023,1755599466829,-663.34,0.00020547,2]
[380188024,1755599466839,-480.0,0.00020547,2]
[380188025,1755599466848,-480.0,0.00020547,2]
[380188026,1755599466858,-480.0,0.00020547,2]
[380188027,1755599466868,-2351.56,0.00020547,2]
[380188028,1755599466877,-480.0,0.00020547,2]
[380188029,1755599466887,-2029.9,0.00020547,2]
[380188030,1755599466897,-480.0,0.00020547,2]
[380188031,1755599466908,-7307.62,0.00020547,2]
[380188032,1755599466917,-480.0,0.00020547,2]
[380188033,1755599466926,-480.0,0.00020547,2]
[380188034,1755599466936,-480.0,0.00020547,2]
[380188035,1755599466946,-480.0,0.00020547,2]
[380188036,1755599466956,-480.0,0.00020547,2]
[380188037,1755599466965,-364.06795447,0.00020547,2]
[380188038,1755599466975,-847.07,0.00020547,2]
[380188039,1755599466984,-826.51,0.00020547,2]
[380188040,1755599466993,-509.36657895,0.00020547,2]
[380188041,1755599467003,-480.0,0.00020547,2]
[380188042,1755599467012,-5360.43,0.00020547,2]
[380188043,1755599467021,-480.0,0.00020547,2]
[380188044,1755599467030,-162.92409165,0.00020547,2]
[380188045,1755599467039,-480.0,0.00020547,2]
[380188046,1755599467048,-151.0,0.00020547,2]
[380188047,1755599467058,-440.0,0.00020547,2]
[380188048,1755599467067,-480.0,0.00020547,2]
[380188049,1755599467077,-480.0,0.00020547,2]
[380188050,1755599467086,-510.7,0.00020547,2]
[380188051,1755599467095,-1200.0,0.00020548,2]
[380188052,1755599467104,-1500.0,0.00020568,2]
[380188053,1755599467113,-1500.0,0.00020568,2]
[380188054,1755599467123,-543.38,0.0002067,2]
[380188055,1755599467132,-151.0,0.00020683,2]
[380188056,1755599467142,-151.0,0.00020683,2]
[380188057,1755599467151,-153.829146,0.00020683,2]
[380188058,1755599467160,-151.0,0.00020683,2]
[380188059,1755599467169,-5301.39970514,0.00020725,2]
[380188060,1755599467178,-156.029088,0.0002075,3]
[380188061,1755599467187,-2200.0,0.00020774,2]
[380188062,1755599467196,-156.029088,0.00020775,2]
[380188063,1755599467205,-256.0,0.00020781,2]
[380188064,1755599467215,-420.0,0.00020792,2]
[380188065,1755599467224,-480.0,0.00020794,2]
[380188066,1755599467233,-2937.52,0.00020794,2]
[380188067,1755599467243,-480.0,0.00020794,2]
[380188068,1755599467253,-189.110511,0.00020794,2]
[380188069,1755599467262,-189.110511,0.00020794,2]
[380188070,1755599467271,-259.250128,0.00020794,2]
[380188071,1755599467281,-259.250128,0.00020794,2]
[380188072,1755599467290,-156.029088,0.000208,5]
[380188073,1755599467300,-260.0,0.00020802,2]
[380188074,1755599467310,-480.0,0.00020821,2]
[380188075,1755599467319,-447.3445759,0.00020821,2]
[380188076,1755599467330,-480.0,0.00020821,2]
[380188077,1755599467339,-480.0,0.00020821,2]
[380188078,1755599467349,-480.0,0.00020821,2]
[380188079,1755599467358,-480.0,0.00020821,2]
[380188080,1755599467368,-480.0,0.00020821,2]
[380188081,1755599467377,-480.0,0.00020821,2]
[380188082,1755599467386,-480.0,0.00020821,2]
[380188083,1755599467395,-480.0,0.00020821,2]
[380188084,1755599467404,-480.0,0.00020821,2]
[380188085,1755599467414,-247.325344,0.00020821,2]
[380188086,1755599467424,-480.0,0.00020821,2]
[380188087,1755599467433,-480.0,0.00020821,2]
[380188088,1755599467442,-151.0,0.00020821,2]
[380188089,1755599467452,-480.0,0.00020821,2]
[380188090,1755599467461,-480.0,0.00020821,2]
[380188091,1755599467470,-1102.56,0.00020821,2]
[380188092,1755599467479,-480.0,0.00020821,2]
[380188093,1755599467488,-480.0,0.00020821,2]
[380188094,1755599467498,-480.0,0.00020821,2]
[380188095,1755599467507,-480.0,0.00020821,2]
[380188096,1755599467515,-480.0,0.00020821,2]
[380188097,1755599467525,-503.29,0.00020821,2]
[380188098,1755599467535,-480.0,0.00020821,2]
[380188099,1755599467544,-480.0,0.00020821,2]
[380188100,1755599467553,-480.0,0.00020821,2]
[380188101,1755599467563,-841.75,0.00020821,2]
[380188102,1755599467571,-420.0,0.00020821,2]
[380188103,1755599467585,-784.06,0.00020821,2]
[380188104,1755599467594,-151.0,0.00020821,2]
[380188105,1755599467603,-248.108334,0.00020821,2]
[380188106,1755599467612,-480.0,0.00020821,2]
[380188107,1755599467622,-1299.55,0.00020821,2]
[380188108,1755599467631,-248.108334,0.00020821,2]
[380188109,1755599467640,-480.0,0.00020821,2]
[380188110,1755599467650,-792.02,0.00020821,2]
[380188111,1755599467661,-151.0,0.00020821,2]
[380188112,1755599467670,-480.0,0.00020821,2]
[380188113,1755599467680,-480.0,0.00020821,2]
[380188114,1755599467689,-480.0,0.00020821,2]
[380188115,1755599467698,-480.0,0.00020821,2]
[380188116,1755599467707,-480.0,0.00020821,2]
[380188117,1755599467716,-199.455088,0.00020821,2]
[380188118,1755599467726,-489.16,0.00020821,2]
[380188119,1755599467735,-199.455088,0.00020821,2]
[380188120,1755599467745,-480.0,0.00020821,2]
[380188121,1755599467754,-795.9,0.00020821,2]
[380188122,1755599467764,-480.0,0.00020821,2]
[380188123,1755599467773,-182.075042,0.00020821,2]
[380188124,1755599467782,-182.075042,0.00020821,2]
[380188125,1755599467791,-480.0,0.00020821,2]
[380188126,1755599467801,-480.0,0.00020821,2]
[380188127,1755599467810,-268.78406455,0.00020821,2]
[380188128,1755599467820,-480.0,0.00020821,2]
[380188129,1755599467829,-480.0,0.00020821,2]
[380188130,1755599467838,-488.81640553,0.00020821,2]
[380188131,1755599467848,-480.0,0.00020821,2]
[380188132,1755599467857,-151.0,0.00020821,2]
[380188133,1755599467867,-480.0,0.00020821,2]
[380188134,1755599467877,-480.0,0.00020821,2]
[380188135,1755599467887,-480.0,0.00020821,2]
[380188136,1755599467896,-480.0,0.00020821,2]
[380188137,1755599467906,-480.0,0.00020821,2]
[380188138,1755599467916,-589.87,0.00020821,2]
[380188139,1755599467925,-480.0,0.00020821,2]
[380188140,1755599467934,-777.32,0.00020821,2]
[380188141,1755599467943,-865.92,0.00020821,2]
[380188142,1755599467952,-1593.85,0.00020821,2]
[380188143,1755599467961,-565.05,0.00020821,2]
[380188144,1755599467970,-322.947487,0.00020821,2]
[380188145,1755599467979,-480.0,0.00020821,2]
[380188146,1755599467989,-322.947487,0.00020821,2]
[380188147,1755599467998,-480.0,0.00020821,2]
[380188148,1755599468007,-480.0,0.00020821,2]
[380188149,1755599468017,-480.0,0.00020821,2]
[380188150,1755599468026,-900.2,0.00020821,2]
[380188151,1755599468035,-480.0,0.00020821,2]
[380188152,1755599468045,-718.91,0.00020821,2]
[380188153,1755599468054,-151.0,0.00020821,2]
[380188154,1755599468064,-599.35,0.00020821,2]
[380188155,1755599468150,-301.606628,0.00020821,2]
[380188156,1755599468160,-480.0,0.00020821,2]
[380188157,1755599468169,-2530.76,0.00020821,2]
[380188158,1755599468178,-480.0,0.00020821,2]
[380188159,1755599468187,-505.96,0.00020821,2]
[380188160,1755599468196,-1065.73,0.00020821,2]
[380188161,1755599468205,-480.0,0.00020821,2]
[380188162,1755599468214,-151.0,0.00020821,2]
[380188163,1755599468223,-480.0,0.00020821,2]
[380188164,1755599468232,-679.49,0.00020821,2]
[380188165,1755599468242,-663.9,0.00020821,2]
[380188166,1755599468251,-480.0,0.00020821,2]
[380188167,1755599468260,-480.0,0.00020821,2]
[380188168,1755599468269,-534.14,0.00020821,2]
[380188169,1755599468278,-480.0,0.00020821,2]
[380188170,1755599468288,-1373.91,0.00020821,2]
[380188171,1755599468297,-480.0,0.00020821,2]
[380188172,1755599468306,-1581.88,0.00020821,2]
[380188173,1755599468315,-480.0,0.00020821,2]
[380188174,1755599468327,-265.65892373,0.00020821,2]
[380188175,1755599468337,-420.0,0.00020821,2]
[380188176,1755599468346,-1611.44,0.00020821,2]
[380188177,1755599468355,-904.4,0.00020821,2]
[380188178,1755599468364,-1514.26,0.00020821,2]
[380188179,1755599468374,-1044.84,0.00020821,2]
[380188180,1755599468383,-480.0,0.00020821,2]
[380188181,1755599468392,-783.38,0.00020821,2]
[380188182,1755599468402,-876.6,0.00020821,2]
[380188183,1755599468411,-480.0,0.00020821,2]
[380188184,1755599468420,-1209.1,0.00020821,2]
[380188185,1755599468430,-611.3,0.00020821,2]
[380188186,1755599468439,-623.99,0.00020821,2]
[380188187,1755599468448,-480.0,0.00020821,2]
[380188188,1755599468458,-826.52,0.00020821,2]
[380188189,1755599468467,-897.57,0.00020821,2]
[380188190,1755599468476,-480.0,0.00020821,2]
[380188191,1755599468485,-480.0,0.00020821,2]
[380188192,1755599468494,-480.0,0.00020821,2]
[380188193,1755599468504,-480.0,0.00020821,2]
[380188194,1755599468513,-420.0,0.00020821,2]
[380188195,1755599468522,-480.0,0.00020821,2]
[380188196,1755599468532,-480.0,0.00020821,2]
[380188197,1755599468541,-480.0,0.00020821,2]
[380188198,1755599468550,-466.47007139,0.00020821,2]
[380188199,1755599468559,-480.0,0.00020821,2]
[380188200,1755599468568,-480.0,0.00020821,2]
[380188201,1755599468577,-287.52956278,0.00020821,2]
[380188202,1755599468588,-480.0,0.00020821,2]
[380188203,1755599468597,-2157.32,0.00020821,2]
[380188204,1755599468607,-4013.61,0.00020821,2]
[380188205,1755599468615,-480.0,0.00020821,2]
[380188206,1755599468625,-803.59,0.00020821,2]
[380188207,1755599468634,-480.0,0.00020821,2]
[380188208,1755599468643,-480.0,0.00020821,2]
[380188209,1755599468652,-480.0,0.00020821,2]
[380188210,1755599468661,-2409.49,0.00020821,2]
[380188211,1755599468671,-8486.46,0.00020821,2]
[380188212,1755599468681,-480.0,0.00020821,2]
[380188213,1755599468690,-480.0,0.00020821,2]
[380188214,1755599468699,-1614.69,0.00020821,2]
[380188215,1755599468708,-581.68,0.00020821,2]
[380188216,1755599468717,-2954.3,0.00020821,2]
[380188217,1755599468726,-460.0,0.00020821,2]
[380188218,1755599468736,-480.0,0.00020821,2]
[380188219,1755599468745,-480.0,0.00020821,2]
[380188220,1755599468754,-480.0,0.00020821,2]
[380188221,1755599468763,-971.83,0.00020821,2]
[380188222,1755599468773,-480.0,0.00020821,2]
[380188223,1755599468782,-480.0,0.00020821,2]
[380188224,1755599468791,-480.0,0.00020821,2]
[380188225,1755599468801,-811.56,0.00020821,2]
[380188226,1755599468810,-647.39,0.00020821,2]
[380188227,1755599468819,-536.54,0.00020821,2]
[380188228,1755599468829,-480.0,0.00020821,2]
[380188229,1755599468838,-480.0,0.00020821,2]
[380188230,1755599468848,-480.0,0.00020821,2]
[380188231,1755599468858,-491.18,0.00020821,2]
[380188232,1755599468867,-998.9,0.00020821,2]
[380188233,1755599468877,-480.0,0.00020821,2]
[380188234,1755599468887,-663.34,0.00020821,2]
[380188235,1755599468896,-480.0,0.00020821,2]
[380188236,1755599468906,-480.0,0.00020821,2]
[380188237,1755599468915,-239.38561285,0.00020821,2]
[380188238,1755599468925,-2351.56,0.00020821,2]
[380188239,1755599468934,-378.28,0.00020821,2]
[380188240,1755599468943,-2029.9,0.00020821,2]
[380188241,1755599468953,-480.0,0.00020821,2]
[380188242,1755599468963,-202.47504064,0.00020821,2]
[380188243,1755599468972,-480.0,0.00020821,2]
[380188244,1755599468982,-480.0,0.00020821,2]
[380188245,1755599468992,-7307.62,0.00020821,2]
[380188246,1755599469002,-480.0,0.00020821,2]
[380188247,1755599469012,-218.44799428,0.00020821,2]
[380188248,1755599469022,-847.07,0.00020821,2]
[380188249,1755599469031,-826.51,0.00020821,2]
[380188250,1755599469041,-480.0,0.00020821,2]
[380188251,1755599469050,-5360.43,0.00020821,2]
[380188252,1755599469059,-480.0,0.00020821,2]
[380188253,1755599469069,-480.0,0.00020821,2]
[380188254,1755599469078,-480.0,0.00020821,2]
[380188255,1755599469087,-480.0,0.00020821,2]
[380188256,1755599469096,-510.7,0.00020821,2]
[380188257,1755599469106,-156.029088,0.0002089,14]
[380188258,1755599469115,-647.0,0.000209,2]
[380188259,1755599469124,-1155.21832066,0.00020932,2]
[380188260,1755599469134,-503.06817163,0.00020947,2]
[380188261,1755599469143,-151.0,0.00020947,2]
[380188262,1755599469154,-1613.04631675,0.00020952,2]
[380188263,1755599469163,-151.0,0.00020956,2]
[380188264,1755599469173,-256.0,0.00020956,2]
[380188265,1755599469182,-156.029088,0.00020958,14]
[380188266,1755599469192,-256.0,0.0002099,2]
[380188267,1755599469202,-256.0,0.00020997,2]
[380188268,1755599469210,-156.029088,0.00021,3]
[380188269,1755599469220,-156.029088,0.00021026,14]
[380188270,1755599469229,-151.0,0.00021068,2]
[380188271,1755599469239,-151.0,0.00021068,2]
[380188272,1755599469248,-151.44009,0.00021068,2]
[380188273,1755599469258,-151.0,0.00021068,2]
[380188274,1755599469268,-283.24388,0.00021068,2]
[380188275,1755599469277,-151.0,0.00021068,2]
[380188276,1755599469286,-480.0,0.00021068,2]
[380188277,1755599469295,-2937.52,0.00021068,2]
[380188278,1755599469304,-291.7341363,0.00021068,2]
[380188279,1755599469313,-1500.0,0.00021068,2]
[380188280,1755599469323,-480.0,0.00021095,2]
[380188281,1755599469332,-151.0,0.00021095,2]
[380188282,1755599469341,-480.0,0.00021095,2]
[380188283,1755599469352,-480.0,0.00021095,2]
[380188284,1755599469361,-480.0,0.00021095,2]
[380188285,1755599469371,-480.0,0.00021095,2]
[380188286,1755599469380,-480.0,0.00021095,2]
[380188287,1755599469390,-480.0,0.00021095,2]
[380188288,1755599469399,-440.0,0.00021095,2]
[380188289,1755599469409,-151.0,0.00021095,2]
[380188290,1755599469418,-531.58,0.00021095,2]
[380188291,1755599469427,-480.0,0.00021095,2]
[380188292,1755599469436,-480.0,0.00021095,2]
[380188293,1755599469446,-480.0,0.00021095,2]
[380188294,1755599469455,-1102.56,0.00021095,2]
[380188295,1755599469464,-480.0,0.00021095,2]
[380188296,1755599469474,-480.0,0.00021095,2]
[380188297,1755599469482,-480.0,0.00021095,2]
[380188298,1755599469492,-480.0,0.00021095,2]
[380188299,1755599469501,-480.0,0.00021095,2]
[380188300,1755599469510,-503.29,0.00021095,2]
[380188301,1755599469520,-156.029088,0.00021095,14]
[380188302,1755599469529,-480.0,0.00021095,2]
[380188303,1755599469538,-480.0,0.00021095,2]
[380188304,1755599469547,-221.7848094,0.00021095,2]
[380188305,1755599469556,-841.75,0.00021095,2]
[380188306,1755599469567,-784.06,0.00021095,2]
[380188307,1755599469577,-480.0,0.00021095,2]
[380188308,1755599469592,-1299.55,0.00021095,2]
[380188309,1755599469601,-792.02,0.00021095,2]
[380188310,1755599469610,-480.0,0.00021095,2]
[380188311,1755599469619,-480.0,0.00021095,2]
[380188312,1755599469629,-480.0,0.00021095,2]
[380188313,1755599469639,-480.0,0.00021095,2]
[380188314,1755599469647,-489.16,0.00021095,2]
[380188315,1755599469660,-480.0,0.00021095,2]
[380188316,1755599469669,-795.9,0.00021095,2]
[380188317,1755599469678,-480.0,0.00021095,2]
[380188318,1755599469688,-480.0,0.00021095,2]
[380188319,1755599469698,-512.76471533,0.00021095,2]
[380188320,1755599469784,-167.44666511,0.00021095,2]
[380188321,1755599469794,-480.0,0.00021095,2]
[380188322,1755599469803,-480.0,0.00021095,2]
[380188323,1755599469815,-480.0,0.00021095,2]
[380188324,1755599469826,-480.0,0.00021095,2]
[380188325,1755599469836,-480.0,0.00021095,2]
[380188326,1755599469846,-480.0,0.00021095,2]
[380188327,1755599469856,-589.87,0.00021095,2]
[380188328,1755599469865,-480.0,0.00021095,2]
[380188329,1755599469879,-777.32,0.00021095,2]
[380188330,1755599469888,-865.92,0.00021095,2]
[380188331,1755599469898,-1593.85,0.00021095,2]
[380188332,1755599469909,-565.05,0.00021095,2]
[380188333,1755599469919,-474.80484904,0.00021095,2]
[380188334,1755599469929,-322.947487,0.00021095,2]
[380188335,1755599469938,-322.947487,0.00021095,2]
[380188336,1755599469948,-480.0,0.00021095,2]
[380188337,1755599469957,-480.0,0.00021095,2]
[380188338,1755599469966,-480.0,0.00021095,2]
[380188339,1755599469978,-900.2,0.00021095,2]
[380188340,1755599469987,-480.0,0.00021095,2]
[380188341,1755599469996,-718.91,0.00021095,2]
[380188342,1755599470006,-599.35,0.00021095,2]
[380188343,1755599470015,-480.0,0.00021095,2]
[380188344,1755599470025,-480.0,0.00021095,2]
[380188345,1755599470035,-2530.76,0.00021095,2]
[380188346,1755599470044,-505.96,0.00021095,2]
[380188347,1755599470054,-1065.73,0.00021095,2]
[380188348,1755599470063,-480.0,0.00021095,2]
[380188349,1755599470073,-480.0,0.00021095,2]
[380188350,1755599470083,-679.49,0.00021095,2]
[380188351,1755599470092,-663.9,0.00021095,2]
[380188352,1755599470101,-480.0,0.00021095,2]
[380188353,1755599470111,-480.0,0.00021095,2]
[380188354,1755599470120,-534.14,0.00021095,2]
[380188355,1755599470132,-480.0,0.00021095,2]
[380188356,1755599470141,-1373.91,0.00021095,2]
[380188357,1755599470151,-227.18652524,0.00021095,2]
[380188358,1755599470161,-1581.88,0.00021095,2]
[380188359,1755599470171,-480.0,0.00021095,2]
[380188360,1755599470180,-904.4,0.00021095,2]
[380188361,1755599470190,-1611.44,0.00021095,2]
[380188362,1755599470199,-1514.26,0.00021095,2]
[380188363,1755599470210,-1044.84,0.00021095,2]
[380188364,1755599470219,-480.0,0.00021095,2]
[380188365,1755599470228,-783.38,0.00021095,2]
[380188366,1755599470240,-876.6,0.00021095,2]
[380188367,1755599470249,-490.1217917,0.00021095,2]
[380188368,1755599470258,-1209.1,0.00021095,2]
[380188369,1755599470268,-611.3,0.00021095,2]
[380188370,1755599470277,-623.99,0.00021095,2]
[380188371,1755599470286,-412.25096428,0.00021095,2]
[380188372,1755599470295,-826.52,0.00021095,2]
[380188373,1755599470305,-897.57,0.00021095,2]
[380188374,1755599470314,-480.0,0.00021095,2]
[380188375,1755599470325,-592.12254413,0.00021095,2]
[380188376,1755599470334,-480.0,0.00021095,2]
[380188377,1755599470343,-480.0,0.00021095,2]
[380188378,1755599470352,-480.0,0.00021095,2]
[380188379,1755599470361,-480.0,0.00021095,2]
[380188380,1755599470372,-480.0,0.00021095,2]
[380188381,1755599470381,-480.0,0.00021095,2]
[380188382,1755599470392,-480.0,0.00021095,2]